bitfinex-derivatives/quotes_BNBF0:USTF0_20251002
["timestamp","ask_amount","ask_price","bid_price","bid_amount"]
[1759363608192,0.86711352,1030.9,1028.8,0.64426194]
[1759363611292,0.86711352,1030.8,1028.8,0.64426194]
[1759363611792,0.16895049,1030.5,1028.9,0.64426194]
[1759363615793,0.16895049,1030.5,1028.8,0.64426194]
[1759363618197,0.16895049,1030.5,1028.7,0.64426194]
[1759363618497,0.16895049,1030.5,1028.8,0.64426194]
[1759363618697,0.16895049,1030.5,1028.8,8.06874668]
[1759363621804,0.16895049,1030.5,1028.9,0.64426194]
[1759363623408,0.16895049,1030.5,1028.8,8.06874668]
[1759363625106,0.16895049,1030.5,1028.8,7.42448474]
[1759363626205,0.16895049,1030.5,1028.8,8.06874668]
[1759363628405,0.16895049,1030.5,1029.0,0.64426194]
[1759363628904,0.16895049,1030.5,1028.9,0.64426194]
[1759363629606,0.16895049,1030.5,1028.9,0.64142576]
[1759363630909,0.16895049,1030.5,1029.0,0.64142576]
[1759363631112,0.16895049,1030.5,1029.2,0.64142576]
[1759363632213,0.86711352,1031.1,1029.2,0.64142576]
[1759363632414,0.86711352,1031.2,1029.2,0.64142576]
[1759363632713,0.16890129,1030.7,1029.2,0.64142576]
[1759363640320,0.16890129,1030.7,1029.3,0.64142576]
[1759363641821,0.16890129,1030.7,1029.2,0.64142576]
[1759363642423,0.16890129,1030.7,1028.8,7.42448474]
[1759363642424,0.16890129,1030.7,1029.3,0.64142576]
[1759363648834,0.16890129,1030.7,1029.2,0.64142576]
[1759363650731,1.03601481,1030.7,1029.3,0.64142576]
[1759363651236,0.86711352,1030.6,1029.3,0.64142576]
[1759363652434,1.03601481,1030.7,1029.2,0.64142576]
[1759363653036,0.16890129,1030.7,1029.3,0.64142576]
[1759363655245,0.16890129,1030.7,1029.2,0.64142576]
[1759363659349,0.16890129,1030.7,1029.3,0.64142576]
[1759363661449,0.16890129,1030.7,1029.2,0.64142576]
[1759363663952,0.16890129,1030.7,1029.3,0.64142576]
[1759363664450,1.03601481,1030.7,1029.3,0.64142576]
[1759363664853,0.16890129,1030.7,1029.3,0.64142576]
[1759363665052,1.03601481,1030.7,1029.2,0.64142576]
[1759363665253,0.16890129,1030.7,1029.2,0.64142576]
[1759363665453,1.03601481,1030.7,1029.1,0.64142576]
[1759363667853,0.86711352,1030.6,1029.1,0.64142576]
[1759363668053,1.03601481,1030.7,1029.0,0.64142576]
[1759363668448,1.03601481,1030.7,1028.9,0.64142576]
[1759363668852,1.03601481,1030.7,1029.0,0.64142576]
[1759363669250,0.86711352,1030.6,1028.9,0.64142576]
[1759363670354,1.03601481,1030.7,1028.9,0.64142576]
[1759363670552,0.86711352,1030.6,1028.9,0.64142576]
[1759363671157,1.03601481,1030.7,1028.9,0.64142576]
[1759363671557,0.86711352,1030.5,1028.9,0.64142576]
[1759363671852,0.86711352,1030.5,1029.0,0.64142576]
[1759363675955,0.86711352,1030.5,1028.8,0.85917211]
[1759363675956,1.03601481,1030.7,1028.9,0.64142576]
[1759363678457,1.03601481,1030.7,1028.8,0.64142576]
[1759363679260,0.86711352,1030.3,1028.9,0.64142576]
[1759363679457,0.16890129,1030.7,1028.9,0.64142576]
[1759363679458,0.86711352,1030.2,1028.9,0.64142576]
[1759363679661,1.03601481,1030.7,1028.7,0.64142576]
[1759363681364,0.86711352,1030.3,1028.9,0.64142576]
[1759363681564,0.86711352,1030.3,1028.8,0.64142576]
[1759363682665,0.86711352,1030.4,1028.7,0.64142576]
[1759363684365,0.86711352,1030.5,1028.7,0.64142576]
[1759363685165,0.86711352,1030.4,1028.7,0.64142576]
[1759363685670,0.86711352,1030.5,1028.7,0.64142576]
[1759363686766,0.86711352,1030.6,1028.7,0.64142576]
[1759363686969,1.03601481,1030.7,1028.6,0.64142576]
[1759363688172,0.16890129,1030.7,1028.6,0.64142576]
[1759363688474,0.16890129,1030.7,1028.5,0.64142576]
[1759363689672,0.16890129,1030.7,1028.6,0.64142576]
[1759363690869,0.86711352,1030.4,1028.9,0.64142576]
[1759363691173,0.86711352,1030.6,1028.8,0.64142576]
[1759363692772,0.16890129,1030.7,1028.8,0.64142576]
[1759363693272,1.03601481,1030.7,1028.9,0.64142576]
[1759363693471,0.16890129,1030.7,1028.9,0.64142576]
[1759363693771,1.03601481,1030.7,1029.0,0.64142576]
[1759363694568,0.16890129,1030.7,1028.9,0.64142576]
[1759363695072,1.03601481,1030.7,1028.9,0.64142576]
[1759363695273,1.03601481,1030.7,1029.0,0.64142576]
[1759363697075,0.16890129,1030.7,1029.1,0.64142576]
[1759363697273,1.03601481,1030.7,1029.2,0.64142576]
[1759363698574,0.86711352,1030.6,1029.2,0.64142576]
[1759363699475,1.03601481,1030.7,1029.2,0.64142576]
[1759363701177,1.03601481,1030.7,1027.9,3.0071024]
[1759363701178,0.16890129,1030.7,1029.1,0.64142576]
[1759363703484,0.16890129,1030.7,1029.2,0.64142576]
[1759363704781,0.16890129,1030.7,1029.0,0.64142576]
[1759363705287,0.16890129,1030.7,1029.1,0.64142576]
[1759363707986,0.16890129,1030.7,1029.2,0.64142576]
[1759363710986,0.16890129,1030.7,1029.3,0.64142576]
[1759363714287,0.16890129,1030.7,1029.4,0.64142576]
[1759363716394,0.16890129,1030.7,1029.5,0.64142576]
[1759363717292,0.86711352,1031.5,1029.3,0.64142576]
[1759363717497,0.16887179,1030.9,1029.2,0.64142576]
[1759363723404,0.86711352,1031.7,1029.7,0.64142576]
[1759363723602,0.16883287,1031.3,1029.7,7.9369292]
[1759363723804,0.16883287,1031.3,1029.7,7.29550344]
[1759363726307,0.16883287,1031.3,1029.7,7.9369292]
[1759363727512,0.86711352,1031.8,1029.8,0.64142576]
[1759363727810,0.16878824,1031.5,1029.8,0.64142576]
[1759363728406,0.16878824,1031.5,1029.9,0.64142576]
[1759363730307,0.16878824,1031.5,1029.8,0.64142576]
[1759363730908,0.16878824,1031.5,1029.7,7.29550344]
[1759363735514,0.16878824,1031.5,1029.7,7.9369292]
[1759363735814,0.16878824,1031.5,1029.7,7.29550344]
[1759363740214,1.03590176,1031.5,1029.7,7.29550344]
[1759363740517,0.86711352,1031.3,1029.7,7.29550344]
[1759363740813,0.86711352,1031.4,1029.7,7.29550344]
[1759363744112,0.86711352,1031.3,1029.7,7.29550344]
[1759363747620,0.86711352,1031.2,1029.7,7.29550344]
[1759363748319,0.86711352,1031.1,1029.7,7.29550344]
[1759363749219,0.86711352,1031.2,1029.7,7.29550344]
[1759363751331,1.3006702,1031.4,1029.7,7.29550344]
[1759363751332,0.86711352,1031.1,1029.7,7.29550344]
[1759363754125,0.86711352,1030.9,1029.7,7.29550344]
[1759363754925,0.86711352,1030.8,1029.7,7.29550344]
[1759363758731,0.86711352,1030.9,1029.7,7.29550344]
[1759363759831,0.86711352,1030.8,1029.7,7.29550344]
[1759363760930,0.86711352,1030.9,1029.7,7.29550344]
[1759363761329,0.86711352,1030.7,1029.7,7.29550344]
[1759363761726,0.86711352,1030.8,1029.7,7.29550344]
[1759363764530,0.86711352,1030.7,1029.7,7.29550344]
[1759363764731,0.86711352,1030.8,1029.7,7.29550344]
[1759363767731,0.86711352,1030.9,1029.7,7.29550344]
[1759363768331,0.16878824,1031.5,1029.7,7.29550344]
[1759363768332,0.86711352,1031.2,1029.7,7.29550344]
[1759363771736,0.86711352,1031.0,1029.7,7.29550344]
[1759363772538,1.3006702,1031.1,1029.7,7.29550344]
[1759363772539,0.86711352,1030.9,1029.7,7.29550344]
[1759363773040,0.86711352,1031.0,1029.7,7.29550344]
[1759363774636,0.86711352,1031.2,1029.7,7.29550344]
[1759363774838,0.86711352,1031.3,1029.7,7.29550344]
[1759363777936,0.16878824,1031.5,1029.7,7.29550344]
[1759363782148,0.16878824,1031.5,1029.7,7.93501678]
[1759363783852,0.16878824,1031.5,1029.7,7.29550344]
[1759363785051,1.03590176,1031.5,1029.7,7.29550344]
[1759363785253,0.86711352,1031.4,1029.7,7.29550344]
[1759363786353,1.03590176,1031.5,1029.7,7.29550344]
[1759363786850,0.16878824,1031.5,1029.7,7.29550344]
[1759363788053,1.03590176,1031.5,1029.7,7.29550344]
[1759363789153,0.16878824,1031.5,1029.7,7.29550344]
[1759363789456,1.03590176,1031.5,1029.7,7.29550344]
[1759363790556,0.86711352,1031.4,1029.7,7.29550344]
[1759363792757,0.86711352,1031.4,1029.7,7.93501678]
[1759363793055,1.03590176,1031.5,1029.7,7.93501678]
[1759363793557,1.03590176,1031.5,1029.8,0.63951334]
[1759363793857,0.86711352,1031.4,1029.8,0.63951334]
[1759363794855,1.03590176,1031.5,1029.8,0.63951334]
[1759363796258,0.16878824,1031.5,1029.7,7.29550344]
[1759363797262,0.86711352,1031.3,1029.8,0.63951334]
[1759363797561,0.86711352,1031.4,1029.8,0.63951334]
[1759363799262,1.03590176,1031.5,1029.8,0.63951334]
[1759363799460,0.86711352,1031.4,1029.7,7.93501678]
[1759363800667,1.03590176,1031.5,1029.7,7.29550344]
[1759363802264,0.16878824,1031.5,1029.7,7.29550344]
[1759363803264,0.86711352,1031.1,1029.7,7.29550344]
[1759363803969,0.86711352,1031.2,1029.7,7.29550344]
[1759363805165,0.86711352,1031.3,1029.7,7.29550344]
[1759363807373,0.86711352,1031.2,1029.7,7.29550344]
[1759363809277,0.86711352,1031.1,1029.7,7.29550344]
[1759363811380,0.86711352,1031.2,1029.7,7.29550344]
[1759363811881,0.86711352,1031.1,1029.7,7.29550344]
[1759363812177,0.86711352,1031.2,1029.7,7.29550344]
[1759363812679,0.86711352,1031.1,1029.7,7.29550344]
[1759363812877,0.86711352,1031.2,1029.7,7.29550344]
[1759363813178,0.86711352,1031.1,1029.7,7.29550344]
[1759363816686,0.86711352,1031.0,1029.7,7.29550344]
[1759363819883,0.86711352,1031.2,1029.7,7.29550344]
[1759363822084,0.86711352,1031.1,1029.7,7.29550344]
[1759363826884,0.86711352,1031.0,1029.7,7.29550344]
[1759363827386,0.86711352,1031.3,1029.7,7.29550344]
[1759363828390,0.86711352,1031.2,1029.7,7.29550344]
[1759363829789,0.86711352,1030.9,1029.7,7.29550344]
[1759363830689,0.86711352,1030.7,1029.7,7.29550344]
[1759363831491,0.86711352,1030.6,1029.2,0.63951334]
[1759363831890,0.86711352,1030.4,1029.0,0.63951334]
[1759363832096,0.86711352,1030.3,1029.0,0.63951334]
[1759363832391,0.86711352,1030.3,1028.9,0.63951334]
[1759363832695,0.86711352,1030.2,1028.8,0.63951334]
[1759363833194,0.86711352,1030.4,1028.7,0.63951334]
[1759363833994,0.86711352,1030.4,1028.6,0.63951334]
[1759363835198,0.86711352,1030.4,1028.5,44.73890942]
[1759363835598,0.86711352,1030.5,1028.6,0.63951334]
[1759363835804,0.86711352,1030.5,1028.5,44.73890942]
[1759363836000,0.86711352,1030.5,1028.6,0.63951334]
[1759363836204,0.86711352,1030.5,1028.5,44.73890942]
[1759363837205,0.86711352,1030.7,1028.5,44.09939608]
[1759363837401,0.86711352,1030.8,1028.5,44.73890942]
[1759363837801,0.86711352,1030.8,1028.6,0.63951334]
[1759363838005,0.86711352,1030.9,1028.8,0.63951334]
[1759363838202,0.86711352,1031.0,1028.8,0.63951334]
[1759363839402,0.86711352,1031.0,1028.9,0.63951334]
[1759363840100,0.86711352,1031.0,1028.5,45.38815418]
[1759363840101,0.86711352,1030.9,1029.0,0.63951334]
[1759363840705,0.86711352,1031.0,1028.9,0.63951334]
[1759363841104,0.86711352,1030.9,1028.5,44.95856819]
[1759363841605,0.86711352,1030.8,1028.5,44.09939608]
[1759363841802,0.86711352,1030.9,1028.4,0.85917211]
[1759363845508,0.86711352,1030.8,1028.4,0.85917211]
[1759363846208,0.86711352,1030.8,1028.5,0.85917211]
[1759363847313,0.86711352,1030.8,1028.4,0.85917211]
[1759363848112,0.86711352,1030.8,1028.5,0.85917211]
[1759363848409,0.86711352,1030.8,1028.5,8.21586238]
[1759363849012,0.86711352,1030.9,1028.5,8.21586238]
[1759363849312,0.86711352,1031.2,1028.5,7.35669027]
[1759363851520,0.86711352,1030.9,1028.5,7.35669027]
[1759363851721,0.86711352,1030.6,1028.5,7.35669027]
[1759363852121,0.86711352,1030.7,1028.5,7.35669027]
[1759363856424,0.86711352,1030.6,1028.5,7.35669027]
[1759363857325,0.86711352,1030.3,1028.5,7.35669027]
[1759363857526,0.86711352,1030.2,1028.5,7.35669027]
[1759363863335,0.86711352,1030.3,1028.5,7.35669027]
[1759363866638,0.86711352,1030.4,1028.5,7.35669027]
[1759363867333,0.86711352,1030.3,1028.5,7.35669027]
[1759363867536,0.86711352,1030.6,1028.5,7.35669027]
[1759363868534,0.86711352,1030.8,1028.5,7.35669027]
[1759363869436,0.86711352,1030.7,1028.5,7.35669027]
[1759363870139,0.86711352,1030.9,1028.5,7.35669027]
[1759363870635,0.86711352,1030.1,1028.5,7.35669027]
[1759363870840,0.16878824,1031.5,1028.5,7.35669027]
[1759363870841,0.86711352,1030.2,1028.5,7.35669027]
[1759363871536,0.86711352,1030.1,1028.5,7.35669027]
[1759363875738,0.86711352,1030.2,1028.5,7.35669027]
[1759363877945,0.86711352,1030.1,1028.5,7.35669027]
[1759363878145,0.86711352,1030.2,1028.5,7.35669027]
[1759363879446,0.86711352,1030.4,1028.5,8.21586238]
[1759363879646,0.86711352,1030.5,1028.6,0.85917211]
[1759363880541,0.86711352,1030.5,1028.7,0.85917211]
[1759363880942,0.86711352,1030.6,1028.7,0.85917211]
[1759363881245,0.86711352,1030.5,1028.7,0.85917211]
[1759363881644,0.86711352,1030.7,1028.6,0.85917211]
[1759363882947,0.86711352,1030.6,1028.6,0.85917211]
[1759363883448,0.86711352,1030.6,1028.5,8.21586238]
[1759363885444,0.86711352,1030.8,1028.5,7.35669027]
[1759363889747,0.86711352,1030.7,1028.6,0.85917211]
[1759363890247,0.86711352,1030.6,1028.6,0.85917211]
[1759363892450,0.86711352,1030.7,1028.6,0.85917211]
[1759363892761,0.86711352,1030.7,1028.5,8.21586238]
[1759363893753,0.86711352,1030.6,1028.5,8.21586238]
[1759363894255,0.86711352,1030.7,1028.5,8.21586238]
[1759363894956,0.86711352,1030.7,1028.5,7.35669027]
[1759363896256,0.86711352,1030.6,1028.5,8.21586238]
[1759363896653,0.86711352,1030.7,1028.6,0.85917211]
[1759363897156,0.86711352,1030.5,1028.7,0.85917211]
[1759363897355,0.86711352,1030.6,1028.8,0.85917211]
[1759363899557,0.86711352,1030.7,1028.8,0.85917211]
[1759363901162,0.86711352,1030.8,1029.1,0.64213623]
[1759363902358,0.86711352,1030.7,1029.2,0.64213623]
[1759363902561,0.86711352,1030.8,1029.3,0.64213623]
[1759363904865,0.86711352,1031.3,1029.1,0.64213623]
[1759363905359,0.86711352,1031.0,1029.4,0.64213623]
[1759363906064,0.86711352,1031.1,1029.3,0.64213623]
[1759363906258,0.86711352,1031.2,1029.3,0.64213623]
[1759363907459,0.86711352,1031.3,1029.3,0.64213623]
[1759363907659,0.86711352,1031.3,1029.4,0.64213623]
[1759363908264,0.86711352,1031.3,1029.3,0.64213623]
[1759363910163,0.86711352,1031.2,1029.4,0.64213623]
[1759363910762,0.16878824,1031.5,1029.2,0.64213623]
[1759363910967,0.16878824,1031.5,1029.3,0.64213623]
[1759363911964,0.16878824,1031.5,1029.2,0.64213623]
[1759363914067,1.03590176,1031.5,1029.2,0.64213623]
[1759363914268,0.86711352,1031.4,1029.3,0.64213623]
[1759363916366,0.86711352,1031.4,1029.2,0.64213623]
[1759363921274,1.03590176,1031.5,1029.3,0.64213623]
[1759363921673,0.16878824,1031.5,1029.3,0.64213623]
[1759363922878,0.16878824,1031.5,1029.2,0.64213623]
[1759363923696,0.86711352,1031.4,1029.2,0.64213623]
[1759363924181,0.86711352,1031.3,1029.1,0.64213623]
[1759363924481,0.86711352,1031.1,1029.0,0.64213623]
[1759363924779,0.86711352,1031.1,1029.1,0.64213623]
[1759363925879,0.86711352,1031.1,1029.0,0.64213623]
[1759363926383,0.86711352,1031.1,1029.1,0.64213623]
[1759363926794,0.86711352,1031.1,1029.0,0.64213623]
[1759363927985,0.16890703,1030.7,1029.1,0.64213623]
[1759363929286,0.16890703,1030.7,1029.0,0.64213623]
[1759363929482,0.16890703,1030.7,1029.1,0.64213623]
[1759363931081,0.16890703,1030.7,1029.2,0.64213623]
[1759363931687,0.16890703,1030.7,1029.1,0.64213623]
[1759363932084,0.16890703,1030.7,1029.0,0.64213623]
[1759363932382,0.16890703,1030.7,1029.1,0.64213623]
[1759363932685,0.16890703,1030.7,1029.0,0.64213623]
[1759363933283,0.16890703,1030.7,1029.1,0.64213623]
[1759363936687,0.16890703,1030.7,1029.2,0.64213623]
[1759363937496,0.16890703,1030.7,1029.3,0.64213623]
[1759363938391,0.16890703,1030.7,1029.4,0.64213623]
[1759363938988,0.86711352,1031.2,1029.4,0.64213623]
[1759363939290,0.16886605,1030.9,1029.6,0.64213623]
[1759363941494,0.16886605,1030.9,1029.5,0.64213623]
[1759363941701,0.16886605,1030.9,1029.6,0.64213623]
[1759363943393,0.16886605,1030.9,1029.5,0.64213623]
[1759363946797,0.16886605,1030.9,1029.6,0.64213623]
[1759363948002,0.16886605,1030.9,1029.5,0.64213623]
[1759363948399,0.16886605,1030.9,1029.6,0.64213623]
[1759363953403,0.16886605,1030.9,1029.7,0.64213623]
[1759363956301,0.16886605,1030.9,1029.8,0.64213623]
[1759363969218,0.16886605,1030.9,1029.7,0.64213623]
[1759363972320,0.86711352,1030.8,1029.7,0.64213623]
[1759363973923,0.16886605,1030.9,1029.4,0.64213623]
[1759363974123,0.16886605,1030.9,1029.3,0.64213623]
[1759363974320,0.16886605,1030.9,1029.2,0.64213623]
[1759363975123,1.03597957,1030.9,1029.4,8.14596578]
[1759363975319,0.16886605,1030.9,1029.4,8.14596578]
[1759363975723,1.03597957,1030.9,1029.4,8.14596578]
[1759363976419,0.16886605,1030.9,1029.4,8.14596578]
[1759363978826,0.16886605,1030.9,1029.5,0.64213623]
[1759363979230,0.86711352,1030.8,1029.7,0.64213623]
[1759363980824,0.86711352,1030.8,1029.5,0.85917211]
[1759363980825,1.03597957,1030.9,1029.8,0.64213623]
[1759363981525,0.16886605,1030.9,1029.8,0.64213623]
[1759363986729,0.16886605,1030.9,1029.6,0.64213623]
[1759363988631,0.16886605,1030.9,1029.5,0.64213623]
[1759363989536,0.16886605,1030.9,1029.4,7.50382955]
[1759363989537,0.16886605,1030.9,1029.6,0.64213623]
[1759363989732,1.03597957,1030.9,1029.6,0.64213623]
[1759363990231,0.16886605,1030.9,1029.5,0.64213623]
[1759363992933,0.86711352,1030.8,1029.4,8.14596578]
[1759363993336,1.03597957,1030.9,1029.4,8.14596578]
[1759363993537,0.86711352,1030.8,1029.4,8.14596578]
[1759363993737,0.86711352,1030.8,1029.5,0.64213623]
[1759363993937,1.03597957,1030.9,1029.5,0.64213623]
[1759363994336,0.86711352,1030.8,1029.5,0.64213623]
[1759363994536,1.03597957,1030.9,1029.6,0.64213623]
[1759363994737,0.16886605,1030.9,1029.7,0.64213623]
[1759363996337,0.16886605,1030.9,1029.8,0.64213623]
[1759363997241,0.16886605,1030.9,1029.7,0.64213623]
[1759363997438,0.16886605,1030.9,1029.8,0.64213623]
[1759363998341,0.16886605,1030.9,1029.7,0.64213623]
[1759364003942,0.16886605,1030.9,1029.6,0.64213623]
[1759364006546,0.16886605,1030.9,1029.7,0.64213623]
[1759364007047,0.86711352,1031.5,1029.7,0.64213623]
[1759364007247,0.86711352,1031.6,1029.7,0.64213623]
[1759364007444,0.16882918,1031.1,1029.8,0.64213623]
[1759364007644,0.16882918,1031.1,1029.9,0.64213623]
[1759364007850,0.16882918,1031.1,1030.0,0.64213623]
[1759364008350,0.16882918,1031.1,1029.9,0.64213623]
[1759364008844,0.86711352,1031.6,1029.9,0.64213623]
[1759364009048,0.86711352,1031.6,1030.0,0.64213623]
[1759364009247,0.16880052,1031.3,1030.0,0.64213623]
[1759364009452,0.16880052,1031.3,1029.8,0.64213623]
[1759364017568,0.16880052,1031.3,1029.9,0.64213623]
[1759364018167,0.16880052,1031.3,1030.0,0.64213623]
[1759364018364,0.16880052,1031.3,1030.1,0.64213623]
[1759364019965,0.16880052,1031.3,1030.0,0.64213623]
[1759364020364,0.16880052,1031.3,1029.9,0.64213623]
[1759364021372,0.16880052,1031.3,1030.1,0.64213623]
[1759364021668,0.16880052,1031.3,1030.0,0.64213623]
[1759364026370,0.86711352,1031.8,1030.0,0.64213623]
[1759364026770,0.1687686,1031.5,1030.0,0.64213623]
[1759364027072,0.1687686,1031.5,1030.2,0.64213623]
[1759364027474,0.1687686,1031.5,1030.1,0.64213623]
[1759364028273,0.1687686,1031.5,1030.0,0.64213623]
[1759364031373,0.1687686,1031.5,1029.8,0.85917211]
[1759364031374,0.1687686,1031.5,1030.1,0.64213623]
[1759364032275,0.1687686,1031.5,1030.0,0.64213623]
[1759364033081,0.1687686,1031.5,1029.9,0.64213623]
[1759364033482,0.1687686,1031.5,1030.0,0.64213623]
[1759364033778,0.1687686,1031.5,1029.9,0.64213623]
[1759364034782,0.1687686,1031.5,1030.0,0.64213623]
[1759364035978,0.86711352,1032.0,1030.0,0.64213623]
[1759364036180,0.16874977,1031.7,1030.0,0.64213623]
[1759364036380,0.16874977,1031.7,1030.1,0.64213623]
[1759364037082,0.16874977,1031.7,1030.2,0.64213623]
[1759364037279,0.16874977,1031.7,1030.3,0.64213623]
[1759364037486,0.16874977,1031.7,1030.2,0.64213623]
[1759364049491,0.16874977,1031.7,1030.1,0.64213623]
[1759364049690,0.16874977,1031.7,1030.2,0.64213623]
[1759364049890,0.16874977,1031.7,1030.1,0.64213623]
[1759364050190,0.16874977,1031.7,1030.2,0.64213623]
[1759364050994,0.16874977,1031.7,1030.1,0.64213623]
[1759364053400,0.16874977,1031.7,1030.2,0.64213623]
[1759364056302,0.16874977,1031.7,1030.3,0.64213623]
[1759364056803,0.86711352,1032.1,1030.4,0.64213623]
[1759364057009,0.16871705,1031.9,1030.4,0.64213623]
[1759364057198,0.86711352,1032.1,1030.5,0.64213623]
[1759364057399,0.86711352,1032.2,1030.6,0.64213623]
[1759364057601,0.16869497,1032.1,1030.6,0.64213623]
[1759364057798,1.03580849,1032.1,1030.6,0.64213623]
[1759364058100,0.16869497,1032.1,1030.6,0.64213623]
[1759364059700,0.16869497,1032.1,1030.5,0.64213623]
[1759364060302,0.16869497,1032.1,1030.6,0.64213623]
[1759364060505,0.16869497,1032.1,1030.7,0.64213623]
[1759364060903,0.16869497,1032.1,1030.6,0.64213623]
[1759364061715,0.16869497,1032.1,1030.5,0.64213623]
[1759364062705,0.16869497,1032.1,1030.6,0.64213623]
[1759364065308,0.16869497,1032.1,1030.7,0.64213623]
[1759364066410,0.86711352,1032.7,1030.7,0.64213623]
[1759364066610,0.16864264,1032.4,1030.7,0.64213623]
[1759364066811,0.16864264,1032.4,1030.8,0.64213623]
[1759364067307,0.16860833,1032.6,1030.9,0.64213623]
[1759364068207,0.16860833,1032.6,1030.8,0.64213623]
[1759364070113,0.16860833,1032.6,1030.9,0.64213623]
[1759364070409,0.16860833,1032.6,1031.0,0.64213623]
[1759364070612,0.16860833,1032.6,1031.1,7.95834406]
[1759364071114,0.16860833,1032.6,1031.1,7.31620783]
[1759364080714,0.86711352,1033.2,1031.1,7.31620783]
[1759364081017,0.16853973,1033.1,1031.3,0.64213623]
[1759364081717,0.16853973,1033.1,1031.2,0.64213623]
[1759364082615,0.16853973,1033.1,1031.1,7.95834406]
[1759364083518,0.16853973,1033.1,1031.1,7.31620783]
[1759364099539,0.16853973,1033.1,1031.1,7.95834406]
[1759364100443,0.16853973,1033.1,1031.1,7.31620783]
[1759364100644,0.16853973,1033.1,1031.1,7.95834406]
[1759364101144,0.16853973,1033.1,1031.1,7.31620783]
[1759364101740,0.86711352,1033.6,1031.1,7.31620783]
[1759364102043,0.16853076,1033.0,1031.1,7.31620783]
[1759364102343,0.16853076,1033.0,1031.1,7.95834406]
[1759364105542,0.16853076,1033.0,1031.1,7.31620783]
[1759364106244,0.16853076,1033.0,1031.1,7.95834406]
[1759364113348,0.16853076,1033.0,1031.2,0.64213623]
[1759364113847,0.16853076,1033.0,1031.1,7.95834406]
[1759364114250,0.16853076,1033.0,1031.2,0.64213623]
[1759364115752,0.16853076,1033.0,1031.3,0.64213623]
[1759364117256,0.16853076,1033.0,1031.4,0.64213623]
[1759364118452,0.16853076,1033.0,1031.5,0.64213623]
[1759364120158,0.16853076,1033.0,1031.6,0.64213623]
[1759364120364,0.16853076,1033.0,1031.5,0.64213623]
[1759364122461,0.16853076,1033.0,1031.4,0.64213623]
[1759364123160,0.16853076,1033.0,1031.5,0.64213623]
[1759364123861,1.03564428,1033.0,1031.5,0.64213623]
[1759364124356,1.03564428,1033.0,1031.6,0.64213623]
[1759364124555,1.03564428,1033.0,1031.5,0.64213623]
[1759364125262,1.03564428,1033.0,1031.6,0.64213623]
[1759364126161,1.03564428,1033.0,1031.5,0.64213623]
[1759364127260,1.03564428,1033.0,1031.6,0.64213623]
[1759364127457,0.86711352,1032.9,1031.6,0.64213623]
[1759364127661,0.16853076,1033.0,1031.3,0.64213623]
[1759364127861,0.16853076,1033.0,1031.2,0.64213623]
[1759364128158,0.16853076,1033.0,1031.3,0.64213623]
[1759364128860,0.16853076,1033.0,1031.1,7.31620783]
[1759364128861,0.16853076,1033.0,1031.2,0.64213623]
[1759364130159,0.16853076,1033.0,1031.3,0.64213623]
[1759364134264,0.86711352,1032.9,1031.4,0.64213623]
[1759364139969,1.03564428,1033.0,1031.4,0.64213623]
[1759364141969,1.03564428,1033.0,1031.1,7.95834406]
[1759364142173,0.16853076,1033.0,1031.1,7.95834406]
[1759364146675,0.86711352,1032.8,1031.2,0.64213623]
[1759364146878,0.86711352,1032.7,1031.1,7.95834406]
[1759364147576,0.86711352,1032.6,1031.1,7.95834406]
[1759364148676,0.86711352,1032.5,1031.1,7.95834406]
[1759364149177,0.86711352,1032.4,1031.1,7.95834406]
[1759364149380,0.86711352,1032.4,1031.1,7.31620783]
[1759364150477,0.86711352,1032.3,1031.1,7.31620783]
[1759364152177,0.86711352,1032.4,1031.1,7.31620783]
[1759364154081,0.86711352,1032.9,1031.1,7.31620783]
[1759364157282,1.03564428,1033.0,1031.1,7.31620783]
[1759364160285,0.16853076,1033.0,1031.1,7.31620783]
[1759364161386,0.86711352,1032.7,1031.1,7.31620783]
[1759364161585,0.86711352,1032.3,1031.1,7.31620783]
[1759364162786,0.86711352,1032.2,1031.1,7.31620783]
[1759364165289,0.86711352,1032.4,1031.1,7.31620783]
[1759364167184,0.86711352,1032.4,1030.5,0.64213623]
[1759364167389,0.86711352,1032.6,1030.4,0.64213623]
[1759364167590,0.86711352,1032.6,1030.3,0.16853076]
[1759364167888,0.86711352,1032.5,1030.3,0.16853076]
[1759364168485,0.86711352,1032.4,1030.3,0.16853076]
[1759364168989,0.86711352,1032.5,1030.3,0.16853076]
[1759364169391,0.86711352,1032.4,1030.3,0.16853076]
[1759364170285,0.86711352,1032.5,1030.3,0.16853076]
[1759364171386,0.86711352,1032.4,1030.4,0.64213623]
[1759364171592,0.86711352,1032.2,1030.3,0.16853076]
[1759364172992,0.86711352,1032.5,1030.3,0.16853076]
[1759364173493,0.86711352,1032.6,1030.3,0.16853076]
[1759364173697,0.86711352,1032.5,1030.3,0.16853076]
[1759364173898,0.86711352,1032.6,1030.3,0.16853076]
[1759364174399,0.86711352,1032.5,1030.3,0.16853076]
[1759364174895,0.86711352,1032.6,1030.3,0.16853076]
[1759364175909,0.86711352,1032.6,1029.8,0.85917211]
[1759364179614,0.86711352,1032.4,1030.0,0.85917211]
[1759364180312,0.86711352,1032.3,1030.0,0.85917211]
[1759364180515,0.86711352,1032.6,1030.0,0.85917211]
[1759364180815,0.86711352,1032.5,1030.1,0.85917211]
[1759364181012,0.16868433,1032.2,1030.4,0.16868433]
[1759364182023,0.86711352,1032.5,1030.4,0.16868433]
[1759364182317,0.16866553,1032.4,1030.4,0.16868433]
[1759364183617,0.16866553,1032.4,1030.4,1.02785644]
[1759364184317,0.16866553,1032.4,1030.6,0.85917211]
[1759364184914,0.16866553,1032.4,1030.5,0.85917211]
[1759364185515,1.03577905,1032.4,1030.4,1.02785644]
[1759364186120,0.16866553,1032.4,1030.5,0.85917211]
[1759364189318,0.16866553,1032.4,1030.6,0.85917211]
[1759364189518,0.16866553,1032.4,1030.5,0.85917211]
[1759364190421,0.16866553,1032.4,1030.6,0.85917211]
[1759364197425,0.16866553,1032.4,1030.7,0.85917211]
[1759364198622,0.16866553,1032.4,1030.5,0.85917211]
[1759364204231,0.16866553,1032.4,1030.7,0.85917211]
[1759364207837,0.16866553,1032.4,1030.6,0.85917211]
[1759364214137,0.16866553,1032.4,1030.5,0.85917211]
[1759364214538,0.16866553,1032.4,1030.4,1.02785644]
[1759364215442,0.16866553,1032.4,1030.8,0.85917211]
[1759364218343,0.16866553,1032.4,1030.4,0.16868433]
[1759364218344,0.86711352,1032.9,1030.9,0.85917211]
[1759364218541,0.16860751,1032.6,1030.9,0.85917211]
[1759364223146,0.16860751,1032.6,1030.8,0.85917211]
[1759364227651,0.16860751,1032.6,1030.9,0.85917211]
[1759364228549,1.03572103,1032.6,1030.9,0.85917211]
[1759364229948,0.16860751,1032.6,1030.8,0.85917211]
[1759364230150,0.16860751,1032.6,1030.9,0.85917211]
[1759364231447,1.03572103,1032.6,1030.9,0.85917211]
[1759364231653,1.03572103,1032.6,1030.7,1.2887581]
[1759364231654,0.16860751,1032.6,1031.2,8.02148342]
[1759364232252,0.16860751,1032.6,1031.3,0.64090528]
[1759364234654,0.86711352,1032.7,1031.4,0.64090528]
[1759364235354,1.03569081,1032.8,1031.5,0.64090528]
[1759364235553,0.16857729,1032.8,1031.5,0.64090528]
[1759364237859,0.86711352,1033.2,1031.5,0.64090528]